[Event "*** SCC Grand Prix: Titled Tuesday Blitz"]
[Site "Chess.com"]
[Date "2020.08.25"]
[Round "8"]
[White "suyu28"]
[Black "Vsevolod_Ovchinnikov"]
[Result "0-1"]
[WhiteElo "2625"]
[BlackElo "2453"]
[TimeControl "180+1"]
[EndTime "11:35:32 PDT"]
[Termination "Vsevolod_Ovchinnikov won by resignation"]

1. d4 {[%clk 0:03:00.4]} 1... Nf6 {[%clk 0:02:59.9]} 2. c4 {[%clk 0:02:57.8]}
2... g6 {[%clk 0:03:00.1]} 3. Nc3 {[%clk 0:02:58.2]} 3... d5 {[%clk 0:03:00.7]}
4. e3 {[%clk 0:02:55.5]} 4... Bg7 {[%clk 0:03:00.6]} 5. Qb3 {[%clk 0:02:55.7]}
5... c6 {[%clk 0:03:01]} 6. Nf3 {[%clk 0:02:55.2]} 6... O-O {[%clk 0:03:01.4]}
7. Be2 {[%clk 0:02:55.5]} 7... dxc4 {[%clk 0:03:00.9]} 8. Bxc4 {[%clk
0:02:55.4]} 8... b5 {[%clk 0:03:01.4]} 9. Be2 {[%clk 0:02:55.6]} 9... Be6 {[%clk
0:03:01.2]} 10. Qc2 {[%clk 0:02:54.5]} 10... h6 {[%clk 0:02:52.1]} 11. e4 {[%clk
0:02:42.6]} 11... Nbd7 {[%clk 0:02:46.5]} 12. O-O {[%clk 0:02:38.3]} 12... Rc8
{[%clk 0:02:45.9]} 13. h3 {[%clk 0:02:34.5]} 13... Nb6 {[%clk 0:02:40.4]} 14.
Rd1 {[%clk 0:02:30.2]} 14... b4 {[%clk 0:02:38.8]} 15. Na4 {[%clk 0:02:22.9]}
15... Nxa4 {[%clk 0:02:37.1]} 16. Qxa4 {[%clk 0:02:23.8]} 16... Nxe4 {[%clk
0:02:37.4]} 17. Qxb4 {[%clk 0:02:15.8]} 17... Rb8 {[%clk 0:02:23.3]} 18. Qa3
{[%clk 0:02:14.2]} 18... Qd6 {[%clk 0:02:13.9]} 19. Qxd6 {[%clk 0:02:02.3]}
19... Nxd6 {[%clk 0:02:08.4]} 20. b3 {[%clk 0:01:57.3]} 20... c5 {[%clk
0:02:06.4]} 21. Ba3 {[%clk 0:01:39.4]} 21... Ne4 {[%clk 0:01:55.3]} 22. Rac1
{[%clk 0:01:35.2]} 22... cxd4 {[%clk 0:01:50.7]} 23. Nxd4 {[%clk 0:01:29.9]}
23... Bxd4 {[%clk 0:00:53.4]} 24. Rxd4 {[%clk 0:01:27.9]} 24... Nd6 {[%clk
0:00:53.8]} 25. Rxd6 {[%clk 0:01:11.2]} 25... exd6 {[%clk 0:00:54.7]} 26. Bxd6
{[%clk 0:01:11.5]} 26... Rbc8 {[%clk 0:00:49.1]} 27. Re1 {[%clk 0:01:00.2]}
27... Rfd8 {[%clk 0:00:47.9]} 28. Bf4 {[%clk 0:00:59.8]} 28... g5 {[%clk
0:00:46.4]} 29. Be5 {[%clk 0:00:59.3]} 29... Rd2 {[%clk 0:00:37.2]} 30. Ba6
{[%clk 0:00:54.1]} 30... Rcd8 {[%clk 0:00:35.8]} 31. Re3 {[%clk 0:00:49.1]}
31... Rxa2 {[%clk 0:00:33.3]} 32. Bf6 {[%clk 0:00:48.1]} 32... Rd1+ {[%clk
0:00:30.8]} 33. Kh2 {[%clk 0:00:48.1]} 33... Rxa6 {[%clk 0:00:29.6]} 0-1

[Event "*** SCC Grand Prix: Titled Tuesday Blitz"]
[Site "Chess.com"]
[Date "2020.08.25"]
[Round "8"]
[White "Quiet_Desperation"]
[Black "ShadowJolteon"]
[Result "1-0"]
[WhiteElo "2291"]
[BlackElo "2423"]
[TimeControl "180+1"]
[EndTime "11:35:34 PDT"]
[Termination "Quiet_Desperation won by resignation"]

1. Nf3 {[%clk 0:02:48.2]} 1... d5 {[%clk 0:02:57.7]} 2. b3 {[%clk 0:02:46.5]}
2... c5 {[%clk 0:02:48.1]} 3. e3 {[%clk 0:02:47.4]} 3... Nc6 {[%clk 0:02:46.2]}
4. Bb2 {[%clk 0:02:48.3]} 4... Nf6 {[%clk 0:02:45.2]} 5. Bb5 {[%clk 0:02:44.1]}
5... Bd7 {[%clk 0:02:44.7]} 6. O-O {[%clk 0:02:42.4]} 6... e6 {[%clk 0:02:44.9]}
7. Bxc6 {[%clk 0:02:41.9]} 7... Bxc6 {[%clk 0:02:44.7]} 8. Ne5 {[%clk
0:02:41.8]} 8... Bd6 {[%clk 0:02:45.1]} 9. f4 {[%clk 0:02:35.6]} 9... Qc7 {[%clk
0:02:39.3]} 10. d3 {[%clk 0:02:31.8]} 10... O-O-O {[%clk 0:02:35.8]} 11. Nd2
{[%clk 0:02:24.3]} 11... Rdf8 {[%clk 0:02:32.3]} 12. c4 {[%clk 0:02:14.5]} 12...
Rhg8 {[%clk 0:02:30.4]} 13. a3 {[%clk 0:02:10.1]} 13... Nd7 {[%clk 0:02:30.1]}
14. Nxc6 {[%clk 0:02:06.6]} 14... Qxc6 {[%clk 0:02:31]} 15. b4 {[%clk
0:02:04.9]} 15... f6 {[%clk 0:02:21.7]} 16. bxc5 {[%clk 0:01:59.2]} 16... Bxc5
{[%clk 0:02:20.9]} 17. d4 {[%clk 0:01:58.9]} 17... Bb6 {[%clk 0:02:16]} 18. Rc1
{[%clk 0:01:58.4]} 18... Kb8 {[%clk 0:02:14.8]} 19. cxd5 {[%clk 0:01:47.5]}
19... Qxd5 {[%clk 0:02:15.7]} 20. Kh1 {[%clk 0:01:43.6]} 20... g5 {[%clk
0:02:14.4]} 21. e4 {[%clk 0:01:41.2]} 21... Qd6 {[%clk 0:02:10]} 22. Nc4 {[%clk
0:01:38.4]} 22... Qe7 {[%clk 0:02:06.1]} 23. f5 {[%clk 0:01:32.9]} 23... Rc8
{[%clk 0:01:54.1]} 24. Qb3 {[%clk 0:01:24.6]} 24... exf5 {[%clk 0:01:52.2]} 25.
e5 {[%clk 0:01:20.1]} 25... f4 {[%clk 0:01:42.4]} 26. Nd6 {[%clk 0:01:11.8]}
26... Rcd8 {[%clk 0:01:38.1]} 27. Qd5 {[%clk 0:01:06.7]} 27... Nf8 {[%clk
0:01:30.6]} 28. Qxg8 {[%clk 0:01:01.7]} 28... a6 {[%clk 0:01:03.4]} 29. Qb3
{[%clk 0:00:56.1]} 29... Ba7 {[%clk 0:01:01.7]} 30. Rc2 {[%clk 0:00:44.4]} 30...
fxe5 {[%clk 0:00:59.6]} 31. dxe5 {[%clk 0:00:43.6]} 31... Ne6 {[%clk 0:00:55.6]}
32. Rfc1 {[%clk 0:00:40.3]} 32... Be3 {[%clk 0:00:44.5]} 33. Rc7 {[%clk
0:00:30]} 1-0

[Event "*** SCC Grand Prix: Titled Tuesday Blitz"]
[Site "Chess.com"]
[Date "2020.08.25"]
[Round "8"]
[White "ChessSwole"]
[Black "salomez"]
[Result "1-0"]
[WhiteElo "2449"]
[BlackElo "2236"]
[TimeControl "180+1"]
[EndTime "11:35:38 PDT"]
[Termination "ChessSwole won on time"]

1. d4 {[%clk 0:02:58.7]} 1... Nf6 {[%clk 0:03:00]} 2. Bf4 {[%clk 0:02:59.4]}
2... d5 {[%clk 0:02:57.6]} 3. e3 {[%clk 0:02:59.9]} 3... g6 {[%clk 0:02:57.7]}
4. Nc3 {[%clk 0:02:59.6]} 4... Bg7 {[%clk 0:02:58.3]} 5. h4 {[%clk 0:03:00.3]}
5... c6 {[%clk 0:02:57.5]} 6. Nf3 {[%clk 0:02:53.3]} 6... O-O {[%clk 0:02:57.2]}
7. Ne5 {[%clk 0:02:50.2]} 7... Nbd7 {[%clk 0:02:56.3]} 8. h5 {[%clk 0:02:48.9]}
8... Ne8 {[%clk 0:02:51.6]} 9. hxg6 {[%clk 0:02:45.9]} 9... hxg6 {[%clk
0:02:48.5]} 10. Bd3 {[%clk 0:02:41.9]} 10... Nef6 {[%clk 0:02:43]} 11. Ng4
{[%clk 0:02:39.1]} 11... Nh5 {[%clk 0:02:10.8]} 12. Nh6+ {[%clk 0:02:31.6]}
12... Bxh6 {[%clk 0:01:47.5]} 13. Bxh6 {[%clk 0:02:30.5]} 13... Ng7 {[%clk
0:01:43.2]} 14. Qd2 {[%clk 0:02:12.7]} 14... e5 {[%clk 0:01:12.3]} 15. e4 {[%clk
0:02:11.4]} 15... exd4 {[%clk 0:00:55.1]} 16. Bxg7 {[%clk 0:02:09.8]} 16... Kxg7
{[%clk 0:00:55.1]} 17. Qh6+ {[%clk 0:02:08.9]} 17... Kf6 {[%clk 0:00:55.3]} 18.
e5+ {[%clk 0:01:40.6]} 18... Nxe5 {[%clk 0:00:50.5]} 19. Qf4+ {[%clk 0:01:38.5]}
19... Ke6 {[%clk 0:00:46.4]} 20. O-O-O {[%clk 0:01:19.4]} 20... dxc3 {[%clk
0:00:36.9]} 21. Rde1 {[%clk 0:01:18.9]} 21... Qf6 {[%clk 0:00:33.7]} 22. Qh6
{[%clk 0:01:03.1]} 22... cxb2+ {[%clk 0:00:31.5]} 23. Kb1 {[%clk 0:01:02.1]}
23... Bd7 {[%clk 0:00:19.7]} 24. f4 {[%clk 0:00:49]} 24... Rh8 {[%clk
0:00:19.7]} 25. fxe5 {[%clk 0:00:49.4]} 25... Qf2 {[%clk 0:00:07.1]} 26. Qg5
{[%clk 0:00:44.9]} 26... Rxh1 {[%clk 0:00:06]} 27. Rxh1 {[%clk 0:00:45.8]} 27...
Re8 {[%clk 0:00:03.3]} 28. Rf1 {[%clk 0:00:45.6]} 1-0

[Event "*** SCC Grand Prix: Titled Tuesday Blitz"]
[Site "Chess.com"]
[Date "2020.08.25"]
[Round "8"]
[White "Gurvich_Vitaly"]
[Black "SGchess01"]
[Result "1/2-1/2"]
[WhiteElo "2621"]
[BlackElo "2731"]
[TimeControl "180+1"]
[EndTime "11:35:40 PDT"]
[Termination "Game drawn by repetition"]

1. e4 {[%clk 0:03:00.9]} 1... g6 {[%clk 0:02:58.6]} 2. d4 {[%clk 0:02:59.8]}
2... Bg7 {[%clk 0:02:59.5]} 3. c4 {[%clk 0:03:00.3]} 3... d6 {[%clk 0:02:59.5]}
4. Nc3 {[%clk 0:03:00.5]} 4... Nc6 {[%clk 0:02:57.7]} 5. Nge2 {[%clk 0:02:37.1]}
5... e5 {[%clk 0:02:57.3]} 6. Be3 {[%clk 0:02:35.8]} 6... Nh6 {[%clk 0:02:55.2]}
7. f3 {[%clk 0:02:32]} 7... f5 {[%clk 0:02:51.9]} 8. d5 {[%clk 0:02:30.1]} 8...
Ne7 {[%clk 0:02:51.6]} 9. Qd2 {[%clk 0:02:29.7]} 9... Nf7 {[%clk 0:02:50.3]} 10.
g3 {[%clk 0:02:28.9]} 10... O-O {[%clk 0:02:45.5]} 11. Bg2 {[%clk 0:02:28.4]}
11... f4 {[%clk 0:02:22.4]} 12. Bf2 {[%clk 0:02:26.2]} 12... g5 {[%clk 0:02:21]}
13. g4 {[%clk 0:02:26.3]} 13... Ng6 {[%clk 0:02:19.8]} 14. c5 {[%clk 0:02:24.3]}
14... dxc5 {[%clk 0:02:17.9]} 15. Bxc5 {[%clk 0:02:21.8]} 15... Nd6 {[%clk
0:02:18.5]} 16. Bf2 {[%clk 0:02:17.8]} 16... Rf7 {[%clk 0:02:14.9]} 17. O-O-O
{[%clk 0:02:16.8]} 17... Bf8 {[%clk 0:02:14.6]} 18. Qe1 {[%clk 0:02:07.9]} 18...
Be7 {[%clk 0:02:10.9]} 19. Kb1 {[%clk 0:02:07.6]} 19... Bd7 {[%clk 0:02:02]} 20.
Nc1 {[%clk 0:02:06.1]} 20... h6 {[%clk 0:01:54.4]} 21. Nd3 {[%clk 0:02:01.7]}
21... b6 {[%clk 0:01:53.4]} 22. Nb4 {[%clk 0:01:56.9]} 22... Rh7 {[%clk
0:01:48.1]} 23. Nc6 {[%clk 0:01:54.4]} 23... Qe8 {[%clk 0:01:48.3]} 24. Nxe7+
{[%clk 0:01:53.3]} 24... Qxe7 {[%clk 0:01:49.2]} 25. h4 {[%clk 0:01:53.3]} 25...
gxh4 {[%clk 0:01:44.8]} 26. Bxh4 {[%clk 0:01:51.9]} 26... Nxh4 {[%clk 0:01:45]}
27. Rxh4 {[%clk 0:01:50.8]} 27... Kh8 {[%clk 0:01:43.4]} 28. Qh1 {[%clk
0:01:43.1]} 28... Nf7 {[%clk 0:01:42.6]} 29. Rh5 {[%clk 0:01:37]} 29... Rg8
{[%clk 0:01:41.7]} 30. Bf1 {[%clk 0:01:24.5]} 30... Rg5 {[%clk 0:01:34.6]} 31.
Be2 {[%clk 0:01:19.4]} 31... Rxh5 {[%clk 0:01:32.1]} 32. Qxh5 {[%clk 0:01:20.3]}
32... Qg5 {[%clk 0:01:32]} 33. Qh2 {[%clk 0:01:11.7]} 33... h5 {[%clk
0:01:30.4]} 34. gxh5 {[%clk 0:01:08.1]} 34... Rxh5 {[%clk 0:01:30.3]} 35. Qf2
{[%clk 0:01:08]} 35... Qg3 {[%clk 0:01:29.7]} 36. Qxg3 {[%clk 0:01:03.1]} 36...
fxg3 {[%clk 0:01:29.4]} 37. Rg1 {[%clk 0:01:03.6]} 37... Rg5 {[%clk 0:01:25.3]}
38. Kc2 {[%clk 0:01:03.6]} 38... Kg7 {[%clk 0:01:21.1]} 39. Kd2 {[%clk
0:01:03.7]} 39... Nh8 {[%clk 0:01:21.2]} 40. Bf1 {[%clk 0:00:58.8]} 40... Ng6
{[%clk 0:01:20.9]} 41. Ne2 {[%clk 0:00:58.5]} 41... Nh4 {[%clk 0:01:16]} 42.
Rxg3 {[%clk 0:00:43.8]} 42... Rxg3 {[%clk 0:01:15.6]} 43. Nxg3 {[%clk
0:00:44.7]} 43... Nxf3+ {[%clk 0:01:16.5]} 44. Ke3 {[%clk 0:00:43.8]} 44... Nd4
{[%clk 0:01:17]} 45. Bd3 {[%clk 0:00:41.2]} 45... Kf6 {[%clk 0:01:17.1]} 46. Ne2
{[%clk 0:00:40.1]} 46... Nxe2 {[%clk 0:01:15.5]} 47. Bxe2 {[%clk 0:00:41]} 47...
Kg5 {[%clk 0:01:15]} 48. a3 {[%clk 0:00:36.2]} 48... Kh4 {[%clk 0:01:10.2]} 49.
Kf2 {[%clk 0:00:34.7]} 49... Kg5 {[%clk 0:01:08.5]} 50. Ke3 {[%clk 0:00:34.4]}
50... Kh4 {[%clk 0:01:08.2]} 51. Kf2 {[%clk 0:00:34.4]} 51... Kg5 {[%clk
0:01:08.8]} 52. Ke3 {[%clk 0:00:34.6]} 1/2-1/2

[Event "*** SCC Grand Prix: Titled Tuesday Blitz"]
[Site "Chess.com"]
[Date "2020.08.25"]
[Round "8"]
[White "Saxar85"]
[Black "Bulldog167"]
[Result "0-1"]
[WhiteElo "2771"]
[BlackElo "2705"]
[TimeControl "180+1"]
[EndTime "11:35:42 PDT"]
[Termination "Bulldog167 won by resignation"]

1. Nf3 {[%clk 0:02:56.8]} 1... Nf6 {[%clk 0:02:59.7]} 2. g3 {[%clk 0:02:56.4]}
2... b6 {[%clk 0:03:00.1]} 3. Bg2 {[%clk 0:02:56]} 3... Bb7 {[%clk 0:03:01]} 4.
O-O {[%clk 0:02:55.7]} 4... c5 {[%clk 0:03:01.3]} 5. d3 {[%clk 0:02:52.8]} 5...
g6 {[%clk 0:03:00.4]} 6. b3 {[%clk 0:02:50.7]} 6... Bg7 {[%clk 0:03:00.5]} 7.
Bb2 {[%clk 0:02:51]} 7... O-O {[%clk 0:03:01.1]} 8. c4 {[%clk 0:02:50.8]} 8...
d6 {[%clk 0:02:55.4]} 9. Nc3 {[%clk 0:02:49.5]} 9... Nbd7 {[%clk 0:02:54.9]} 10.
e4 {[%clk 0:02:47.4]} 10... Ng4 {[%clk 0:02:26.2]} 11. d4 {[%clk 0:02:38.7]}
11... cxd4 {[%clk 0:02:24.8]} 12. Nxd4 {[%clk 0:02:38.4]} 12... Nge5 {[%clk
0:02:23.7]} 13. Nd5 {[%clk 0:02:30.8]} 13... e6 {[%clk 0:02:21.8]} 14. Ne3
{[%clk 0:02:17.2]} 14... Nc5 {[%clk 0:02:20.7]} 15. Qc2 {[%clk 0:02:12.1]} 15...
Ned3 {[%clk 0:02:11.5]} 16. Bc3 {[%clk 0:02:08.9]} 16... a5 {[%clk 0:02:11.8]}
17. Rad1 {[%clk 0:02:05.2]} 17... Nb4 {[%clk 0:02:11.7]} 18. Qb1 {[%clk
0:02:04.1]} 18... Qe7 {[%clk 0:02:10.3]} 19. a3 {[%clk 0:01:56.2]} 19... Nc6
{[%clk 0:02:10.5]} 20. Nxc6 {[%clk 0:01:54.1]} 20... Bxc6 {[%clk 0:02:11.4]} 21.
Bxg7 {[%clk 0:01:53.6]} 21... Kxg7 {[%clk 0:02:12.3]} 22. b4 {[%clk 0:01:53.1]}
22... axb4 {[%clk 0:02:10.5]} 23. axb4 {[%clk 0:01:53]} 23... Na4 {[%clk
0:01:57.3]} 24. Qb3 {[%clk 0:01:52.4]} 24... b5 {[%clk 0:01:55.3]} 25. e5 {[%clk
0:01:39.8]} 25... d5 {[%clk 0:01:25.1]} 26. cxd5 {[%clk 0:01:33.3]} 26... exd5
{[%clk 0:01:25.5]} 27. Nxd5 {[%clk 0:01:22]} 27... Qxe5 {[%clk 0:01:21.5]} 28.
Rfe1 {[%clk 0:01:21.7]} 28... Qb2 {[%clk 0:01:21.6]} 29. Qd3 {[%clk 0:00:51.4]}
29... Bxd5 {[%clk 0:01:05.2]} 30. Bxd5 {[%clk 0:00:50.1]} 30... Rad8 {[%clk
0:01:05.8]} 31. Qe3 {[%clk 0:00:19.6]} 31... Rfe8 {[%clk 0:00:42.8]} 32. Qf4
{[%clk 0:00:18.2]} 32... Rxe1+ {[%clk 0:00:40.6]} 33. Rxe1 {[%clk 0:00:17.8]}
33... Rxd5 {[%clk 0:00:41.2]} 0-1

[Event "*** SCC Grand Prix: Titled Tuesday Blitz"]
[Site "Chess.com"]
[Date "2020.08.25"]
[Round "8"]
[White "alfiefischer77"]
[Black "biostatistician"]
[Result "0-1"]
[WhiteElo "2302"]
[BlackElo "2488"]
[TimeControl "180+1"]
[EndTime "11:35:44 PDT"]
[Termination "biostatistician won on time"]

1. e4 {[%clk 0:03:00.9]} 1... e6 {[%clk 0:02:59.7]} 2. Nf3 {[%clk 0:03:00.5]}
2... d5 {[%clk 0:03:00.6]} 3. Nc3 {[%clk 0:03:00.4]} 3... Nf6 {[%clk 0:02:59.2]}
4. e5 {[%clk 0:03:00.7]} 4... Ne4 {[%clk 0:02:59.4]} 5. d3 {[%clk 0:02:48.4]}
5... Nxc3 {[%clk 0:02:58.8]} 6. bxc3 {[%clk 0:02:48.4]} 6... c5 {[%clk
0:02:59.7]} 7. g3 {[%clk 0:02:42.2]} 7... Be7 {[%clk 0:02:57]} 8. Bg2 {[%clk
0:02:42]} 8... O-O {[%clk 0:02:57.6]} 9. O-O {[%clk 0:02:42.1]} 9... Nc6 {[%clk
0:02:58.3]} 10. h4 {[%clk 0:02:22.3]} 10... b6 {[%clk 0:02:54.8]} 11. Re1 {[%clk
0:02:13.4]} 11... Bb7 {[%clk 0:02:54.6]} 12. Bg5 {[%clk 0:02:10.1]} 12... Qd7
{[%clk 0:02:47.1]} 13. Qd2 {[%clk 0:02:07.2]} 13... d4 {[%clk 0:02:46]} 14. c4
{[%clk 0:02:00.7]} 14... a6 {[%clk 0:02:37.1]} 15. Rab1 {[%clk 0:01:54]} 15...
Qc7 {[%clk 0:02:31.6]} 16. Nh2 {[%clk 0:01:44.2]} 16... Rab8 {[%clk 0:02:21.7]}
17. Ng4 {[%clk 0:01:31.9]} 17... Ba8 {[%clk 0:02:09.7]} 18. Nf6+ {[%clk
0:01:04.8]} 18... Kh8 {[%clk 0:01:29.7]} 19. Qf4 {[%clk 0:00:45.9]} 19... Nb4
{[%clk 0:01:05.4]} 20. Nh5 {[%clk 0:00:20.2]} 20... Bxg2 {[%clk 0:00:54.5]} 21.
Kxg2 {[%clk 0:00:20.3]} 21... Nxc2 {[%clk 0:00:54.1]} 22. Bf6 {[%clk 0:00:13.6]}
22... Nxe1+ {[%clk 0:00:46.8]} 23. Rxe1 {[%clk 0:00:14.5]} 23... gxf6 {[%clk
0:00:44.1]} 24. Qh6 {[%clk 0:00:11.5]} 24... Rg8 {[%clk 0:00:41.6]} 25. exf6
{[%clk 0:00:04.5]} 25... Bf8 {[%clk 0:00:38]} 0-1

[Event "*** SCC Grand Prix: Titled Tuesday Blitz"]
[Site "Chess.com"]
[Date "2020.08.25"]
[Round "8"]
[White "crackcubano"]
[Black "ShimanovAlex"]
[Result "0-1"]
[WhiteElo "2651"]
[BlackElo "2773"]
[TimeControl "180+1"]
[EndTime "11:35:45 PDT"]
[Termination "ShimanovAlex won on time"]

1. Nf3 {[%clk 0:03:00.9]} 1... e6 {[%clk 0:02:45.6]} 2. c4 {[%clk 0:03:00.1]}
2... g5 {[%clk 0:02:36]} 3. h3 {[%clk 0:02:49.4]} 3... Bg7 {[%clk 0:02:35]} 4.
d4 {[%clk 0:02:48.2]} 4... h6 {[%clk 0:02:35.4]} 5. Nc3 {[%clk 0:02:47.7]} 5...
d6 {[%clk 0:02:33.5]} 6. e4 {[%clk 0:02:46.3]} 6... Ne7 {[%clk 0:02:31]} 7. Be2
{[%clk 0:02:39.8]} 7... Ng6 {[%clk 0:02:29.8]} 8. g3 {[%clk 0:02:37.1]} 8... Nc6
{[%clk 0:02:26.3]} 9. Be3 {[%clk 0:02:36]} 9... O-O {[%clk 0:02:22.1]} 10. h4
{[%clk 0:02:07.4]} 10... g4 {[%clk 0:02:15]} 11. Nh2 {[%clk 0:02:05.7]} 11... h5
{[%clk 0:02:13.5]} 12. Qd2 {[%clk 0:02:00.2]} 12... f5 {[%clk 0:02:12.3]} 13.
O-O-O {[%clk 0:01:54.3]} 13... Qf6 {[%clk 0:02:01.7]} 14. exf5 {[%clk
0:01:47.7]} 14... exf5 {[%clk 0:01:59.3]} 15. Nd5 {[%clk 0:01:46.8]} 15... Qf7
{[%clk 0:01:59.5]} 16. Nf4 {[%clk 0:01:19.6]} 16... Nxf4 {[%clk 0:01:57.7]} 17.
gxf4 {[%clk 0:01:20.5]} 17... d5 {[%clk 0:01:53.9]} 18. Nf1 {[%clk 0:01:13.1]}
18... Be6 {[%clk 0:01:51.6]} 19. Ng3 {[%clk 0:01:11.1]} 19... a5 {[%clk
0:01:45.1]} 20. Kb1 {[%clk 0:01:03.7]} 20... Rfd8 {[%clk 0:01:42.5]} 21. c5
{[%clk 0:00:58]} 21... b6 {[%clk 0:01:16.8]} 22. Rc1 {[%clk 0:00:53.9]} 22...
Rab8 {[%clk 0:01:17.1]} 23. a3 {[%clk 0:00:49.4]} 23... Bf8 {[%clk 0:01:14.6]}
24. cxb6 {[%clk 0:00:35.6]} 24... Rxb6 {[%clk 0:01:15.5]} 25. Rc2 {[%clk
0:00:23.8]} 25... Bxa3 {[%clk 0:01:12.1]} 26. Rxc6 {[%clk 0:00:17.7]} 26...
Rxb2+ {[%clk 0:00:55.8]} 27. Qxb2 {[%clk 0:00:18.6]} 27... Bxb2 {[%clk
0:00:56.6]} 28. Kxb2 {[%clk 0:00:18]} 28... Rb8+ {[%clk 0:00:57.5]} 29. Kc2
{[%clk 0:00:17.7]} 29... Qd7 {[%clk 0:00:56.5]} 30. Rc3 {[%clk 0:00:14.6]} 30...
Qa4+ {[%clk 0:00:56]} 31. Kd3 {[%clk 0:00:14.8]} 31... Rb2 {[%clk 0:00:53.6]}
0-1

[Event "*** SCC Grand Prix: Titled Tuesday Blitz"]
[Site "Chess.com"]
[Date "2020.08.25"]
[Round "8"]
[White "David_Paravyan"]
[Black "VincentKeymer"]
[Result "0-1"]
[WhiteElo "2969"]
[BlackElo "2832"]
[TimeControl "180+1"]
[EndTime "11:35:48 PDT"]
[Termination "VincentKeymer won by resignation"]

1. d4 {[%clk 0:03:00.9]} 1... Nf6 {[%clk 0:02:59.5]} 2. c4 {[%clk 0:03:01.5]}
2... e6 {[%clk 0:02:59.8]} 3. Nf3 {[%clk 0:03:02.2]} 3... d5 {[%clk 0:02:59.9]}
4. Nc3 {[%clk 0:03:02.9]} 4... c6 {[%clk 0:03:00.2]} 5. Bg5 {[%clk 0:02:57.9]}
5... h6 {[%clk 0:02:59.6]} 6. Bh4 {[%clk 0:02:56.3]} 6... dxc4 {[%clk
0:02:59.3]} 7. e4 {[%clk 0:02:56]} 7... g5 {[%clk 0:02:59.5]} 8. Bg3 {[%clk
0:02:56.3]} 8... b5 {[%clk 0:03:00.1]} 9. Be2 {[%clk 0:02:55.7]} 9... Bb7 {[%clk
0:02:53.1]} 10. h3 {[%clk 0:02:55.7]} 10... Nbd7 {[%clk 0:02:47.3]} 11. O-O
{[%clk 0:02:55.2]} 11... a6 {[%clk 0:02:29.3]} 12. Qc2 {[%clk 0:02:41.4]} 12...
c5 {[%clk 0:02:09.8]} 13. d5 {[%clk 0:02:34.7]} 13... Bg7 {[%clk 0:01:50.3]} 14.
Bd6 {[%clk 0:02:23.8]} 14... Qb6 {[%clk 0:01:44.3]} 15. e5 {[%clk 0:02:12.7]}
15... Nxd5 {[%clk 0:01:43.4]} 16. a4 {[%clk 0:02:04]} 16... Bf8 {[%clk
0:01:18.1]} 17. Ne4 {[%clk 0:01:54.3]} 17... Nf4 {[%clk 0:01:18]} 18. axb5
{[%clk 0:01:48.8]} 18... axb5 {[%clk 0:01:16.6]} 19. Rxa8+ {[%clk 0:01:49.2]}
19... Bxa8 {[%clk 0:01:17.5]} 20. Ra1 {[%clk 0:01:49.2]} 20... Bxe4 {[%clk
0:01:06.8]} 21. Qxe4 {[%clk 0:01:49.6]} 21... Bxd6 {[%clk 0:01:07.1]} 22. exd6
{[%clk 0:01:48.4]} 22... Qxd6 {[%clk 0:00:59.9]} 23. Ra8+ {[%clk 0:00:54]} 23...
Nb8 {[%clk 0:00:59.6]} 24. Bf1 {[%clk 0:00:54.3]} 24... O-O {[%clk 0:00:54]} 25.
Qb7 {[%clk 0:00:53.6]} 25... Nc6 {[%clk 0:00:35.4]} 26. Ra6 {[%clk 0:00:50.9]}
26... Qd1 {[%clk 0:00:29.2]} 27. Qxc6 {[%clk 0:00:41.3]} 27... Ne2+ {[%clk
0:00:29.2]} 28. Kh2 {[%clk 0:00:41]} 28... Qxf1 {[%clk 0:00:29.8]} 29. Qxc5
{[%clk 0:00:39.4]} 29... Nf4 {[%clk 0:00:29.8]} 30. Ne1 {[%clk 0:00:14.2]} 30...
Qxe1 {[%clk 0:00:28]} 0-1

[Event "*** SCC Grand Prix: Titled Tuesday Blitz"]
[Site "Chess.com"]
[Date "2020.08.25"]
[Round "8"]
[White "StellarChessPro"]
[Black "HanSchut"]
[Result "1-0"]
[WhiteElo "2501"]
[BlackElo "2279"]
[TimeControl "180+1"]
[EndTime "11:35:48 PDT"]
[Termination "StellarChessPro won by resignation"]

1. b3 {[%clk 0:03:00.9]} 1... e5 {[%clk 0:02:58.6]} 2. Bb2 {[%clk 0:03:01.8]}
2... Bd6 {[%clk 0:02:58.4]} 3. e3 {[%clk 0:03:01.4]} 3... Qe7 {[%clk 0:02:57.6]}
4. Na3 {[%clk 0:03:00.2]} 4... c6 {[%clk 0:02:56.8]} 5. Nc4 {[%clk 0:03:00.4]}
5... Bc7 {[%clk 0:02:56.4]} 6. d4 {[%clk 0:03:00.8]} 6... exd4 {[%clk
0:02:34.3]} 7. Qxd4 {[%clk 0:03:00.6]} 7... Nf6 {[%clk 0:02:33.3]} 8. Qh4 {[%clk
0:02:54.7]} 8... d5 {[%clk 0:02:26.4]} 9. Nd2 {[%clk 0:02:53.1]} 9... Be5 {[%clk
0:02:20]} 10. Bxe5 {[%clk 0:02:53.1]} 10... Qxe5 {[%clk 0:02:20]} 11. Qd4 {[%clk
0:02:54]} 11... Qe7 {[%clk 0:02:10.6]} 12. Bd3 {[%clk 0:02:51.4]} 12... O-O
{[%clk 0:02:08.5]} 13. Qh4 {[%clk 0:02:49.2]} 13... Re8 {[%clk 0:02:03.7]} 14.
Ngf3 {[%clk 0:02:48.7]} 14... Nbd7 {[%clk 0:02:03.7]} 15. O-O {[%clk 0:02:41.3]}
15... Nc5 {[%clk 0:02:02.7]} 16. Rfe1 {[%clk 0:02:28.2]} 16... Nxd3 {[%clk
0:01:43.8]} 17. cxd3 {[%clk 0:02:29.1]} 17... Bf5 {[%clk 0:01:40.6]} 18. d4
{[%clk 0:02:25.3]} 18... a5 {[%clk 0:01:34.4]} 19. a4 {[%clk 0:02:16.7]} 19...
Qb4 {[%clk 0:01:29.7]} 20. Qf4 {[%clk 0:02:07.2]} 20... Bg6 {[%clk 0:01:24]} 21.
h3 {[%clk 0:02:06.7]} 21... Ne4 {[%clk 0:01:23.2]} 22. Nxe4 {[%clk 0:02:02.4]}
22... Rxe4 {[%clk 0:01:23.1]} 23. Qg3 {[%clk 0:01:55.9]} 23... Re7 {[%clk
0:01:13.7]} 24. Qh4 {[%clk 0:01:47.7]} 24... Rae8 {[%clk 0:01:10.7]} 25. Ne5
{[%clk 0:01:46.7]} 25... Qxb3 {[%clk 0:01:05.5]} 26. Nxg6 {[%clk 0:01:46.7]}
26... hxg6 {[%clk 0:01:05.6]} 27. Reb1 {[%clk 0:01:44]} 27... Qc2 {[%clk
0:01:05]} 28. Qg3 {[%clk 0:01:39.5]} 28... Qe4 {[%clk 0:00:49.7]} 29. Rb3 {[%clk
0:01:32.3]} 29... Qc2 {[%clk 0:00:46.1]} 30. Rbb1 {[%clk 0:01:22.1]} 30... Qc4
{[%clk 0:00:44.1]} 31. Qd6 {[%clk 0:01:15.4]} 31... f6 {[%clk 0:00:37.1]} 32.
Rb2 {[%clk 0:01:04.3]} 32... Kf7 {[%clk 0:00:36.4]} 33. Rab1 {[%clk 0:01:01]}
33... Qxa4 {[%clk 0:00:34.7]} 34. Rxb7 {[%clk 0:01:01.4]} 34... Rxb7 {[%clk
0:00:35]} 35. Rxb7+ {[%clk 0:01:02.1]} 35... Kg8 {[%clk 0:00:23.7]} 36. Qc7
{[%clk 0:01:00.6]} 36... Qd1+ {[%clk 0:00:11.9]} 37. Kh2 {[%clk 0:01:00.8]} 1-0